bitfinex-derivatives/quotes_SOLF0:USTF0_20250312
["timestamp","ask_amount","ask_price","bid_price","bid_amount"]
[1741774601786,250.11054852,124.1,124.07,8.0612]
[1741774601982,0.05084852,124.1,124.05,0.06086427]
[1741774602186,0.05084852,124.1,124.05,37.18086427]
[1741774603086,27.3800745,124.1,124.05,0.06086427]
[1741774603285,8.062,124.06,124.05,0.06086427]
[1741774606885,45.23635599,124.07,124.05,0.06086427]
[1741774607087,37.17465599,124.07,124.05,0.06086427]
[1741774607591,8.062,124.06,124.05,0.06086427]
[1741774612195,29.74922598,124.06,123.98,2.0261]
[1741774612395,17.07526173,124.06,123.96,2.0885]
[1741774612794,8.0664,124.0,123.97,8.0676]
[1741774613195,8.0666,123.99,123.97,8.12167403]
[1741774613798,8.12757444,124.0,123.97,8.12167403]
[1741774614299,8.0672,123.98,123.97,0.05407403]
[1741774614595,0.06127444,124.0,123.97,0.05407403]
[1741774615298,0.06127444,124.0,123.98,8.0668]
[1741774615498,0.06127444,124.0,123.97,0.05407403]
[1741774615699,0.06127444,124.0,123.99,8.0666]
[1741774616699,37.08,124.06,123.98,2.1182]
[1741774616893,8.0638,124.04,123.98,2.1182]
[1741774617200,37.08,124.06,124.01,8.0649]
[1741774617402,8.0643,124.03,123.98,2.1182]
[1741774617701,0.05671414,124.02,124.0,8.0656]
[1741774618193,8.12151414,124.02,124.0,8.0656]
[1741774618700,0.05671414,124.02,123.99,0.052109]
[1741774619698,8.0656,124.01,123.99,0.052109]
[1741774620097,0.05671414,124.02,123.99,0.052109]
[1741774620897,0.05671414,124.02,124.0,8.0656]
[1741774621203,0.05671414,124.02,123.99,0.052109]
[1741774621403,8.12141414,124.02,123.99,8.118209]
[1741774621805,0.05671414,124.02,124.0,8.0656]
[1741774622805,8.12141414,124.02,124.0,8.0656]
[1741774623008,0.05671414,124.02,124.0,8.0656]
[1741774624406,0.05671414,124.02,123.99,0.052109]
[1741774624908,0.05671414,124.02,124.0,8.0654]
[1741774625112,0.05671414,124.02,123.99,0.052109]
[1741774625405,8.12191414,124.02,123.99,0.052109]
[1741774625609,0.05671414,124.02,123.99,8.118409]
[1741774626609,8.0656,124.01,123.99,8.118409]
[1741774627317,8.0659,124.0,123.99,0.052109]
[1741774628113,8.0682,123.97,123.94,2.1182]
[1741774628418,27.32364013,124.01,123.94,2.1182]
[1741774628714,27.32364013,124.01,123.93,2.0049]
[1741774628913,8.0682,123.97,123.93,2.0049]
[1741774629115,8.0682,123.97,123.94,8.0698]
[1741774629310,0.05706725,123.96,123.94,8.12860576]
[1741774629515,37.04,123.98,123.94,0.05880576]
[1741774629715,0.05680243,123.96,123.94,0.05880576]
[1741774630115,8.12560243,123.96,123.94,0.05880576]
[1741774631521,8.0692,123.95,123.94,0.05880576]
[1741774632010,8.0692,123.95,123.89,8.0728]
[1741774632011,27.32364013,123.95,123.89,8.0728]
[1741774632211,8.0706,123.93,123.89,8.0728]
[1741774632617,37.04,123.94,123.87,2.1222]
[1741774633019,68.65684013,123.97,123.87,2.1222]
[1741774633318,0.0534689,123.92,123.89,0.05914709]
[1741774633614,0.0534689,123.92,123.87,2.1222]
[1741774633817,0.0534689,123.92,123.91,8.0718]
[1741774634415,0.0534689,123.92,123.89,0.05166725]
[1741774634919,0.0534689,123.92,123.9,8.0724]
[1741774636018,0.0534689,123.92,123.89,0.05166725]
[1741774636216,8.1249689,123.92,123.89,0.05166725]
[1741774636520,17.10188542,123.91,123.89,0.05166725]
[1741774636712,8.0724,123.9,123.89,0.05166725]
[1741774636919,17.10188542,123.91,123.89,0.05166725]
[1741774637219,8.0724,123.9,123.89,0.05166725]
[1741774639729,29.51593863,123.92,123.89,0.05166725]
[1741774640216,8.0724,123.9,123.89,0.05166725]
[1741774640421,29.51593863,123.92,123.89,0.05166725]
[1741774640723,8.0722,123.91,123.89,0.05166725]
[1741774641123,29.51593863,123.92,123.89,8.12446725]
[1741774641323,37.58743863,123.92,123.89,8.12446725]
[1741774642227,8.0719,123.91,123.89,0.05166725]
[1741774643330,8.0724,123.9,123.89,0.05166725]
[1741774643626,29.51593863,123.92,123.89,0.05166725]
[1741774643821,2.1425689,123.92,123.89,0.05166725]
[1741774644023,0.0534689,123.92,123.89,0.05166725]
[1741774644528,0.0534689,123.92,123.89,8.12416725]
[1741774644930,0.0534689,123.92,123.89,0.05166725]
[1741774645230,0.0534689,123.92,123.89,8.12426725]
[1741774645430,8.1246689,123.92,123.89,8.12426725]
[1741774645726,8.1246689,123.92,123.89,0.05166725]
[1741774645727,0.0534689,123.92,123.89,0.05166725]
[1741774646331,0.0534689,123.92,123.9,8.0724]
[1741774646725,0.0534689,123.92,123.89,0.05166725]
[1741774647032,0.0534689,123.92,123.91,8.0718]
[1741774647220,0.0534689,123.92,123.89,0.05166725]
[1741774647423,0.0534689,123.92,123.9,8.0721]
[1741774647830,0.0534689,123.92,123.89,0.05166725]
[1741774648230,0.0534689,123.92,123.91,8.0718]
[1741774649529,0.0534689,123.92,123.89,0.05166725]
[1741774650933,8.1249689,123.92,123.89,8.12446725]
[1741774651135,0.0534689,123.92,123.89,0.05166725]
[1741774651528,37.0,123.91,123.89,0.05166725]
[1741774651732,27.37336973,123.9,123.84,2.1486]
[1741774651928,29.44816973,123.9,123.84,2.1486]
[1741774652335,2.0748,123.9,123.84,2.1486]
[1741774652535,37.0,123.91,123.84,2.1486]
[1741774652931,0.05913697,123.89,123.86,0.05345473]
[1741774655839,0.05913697,123.89,123.87,8.074]
[1741774656040,0.05913697,123.89,123.86,0.05345473]
[1741774656440,0.05913697,123.89,123.88,8.0737]
[1741774657538,3.697e-05,123.89,123.88,8.0737]
[1741774657841,2.0748,123.95,123.86,27.42682446]
[1741774658036,2.0748,123.95,123.86,27.37336973]
[1741774658241,8.0699,123.94,123.86,27.37336973]
[1741774658746,0.05985237,123.91,123.89,0.05417865]
[1741774659042,0.05985237,123.91,123.9,8.0724]
[1741774659237,27.37336973,123.98,123.89,0.05417865]
[1741774659438,36.98,123.98,123.95,8.0689]
[1741774659643,2.0422,123.99,123.9,4.2684]
[1741774659947,8.0688,123.96,123.93,8.0701]
[1741774660137,27.37336973,123.98,123.9,4.2684]
[1741774660441,0.05641288,123.95,123.93,0.05791231]
[1741774660944,0.05641288,123.95,123.94,8.0698]
[1741774661342,259.10882026,124.0,123.93,37.01791231]
[1741774661535,36.96,124.01,123.93,54.10673257]
[1741774661738,36.96,124.01,123.93,36.96]
[1741774661947,8.0676,123.98,123.94,8.0693]
[1741774662135,8.0676,123.98,123.93,36.96]
[1741774662335,17.08882026,124.0,123.93,36.96]
[1741774662539,0.05932489,123.97,123.96,8.0685]
[1741774665045,0.05932489,123.97,123.95,8.12607331]
[1741774665243,0.05932489,123.97,123.95,0.05727331]
[1741774665644,0.05932489,123.97,123.95,8.12607331]
[1741774665944,0.05932489,123.97,123.95,0.05727331]
[1741774666937,17.08882026,123.96,123.95,0.05727331]
[1741774667441,25.15732026,123.96,123.95,0.05727331]
[1741774668842,17.08882026,123.96,123.9,10.1527]
[1741774669043,17.08882026,123.96,123.9,2.0805]
[1741774669447,8.0701,123.94,123.91,8.0714]
[1741774670050,0.05332335,123.94,123.91,8.1296606]
[1741774670244,8.0705,123.93,123.91,8.1296606]
[1741774670647,17.14214361,123.94,123.91,0.0582606]
[1741774670841,8.0711,123.92,123.91,0.0582606]
[1741774671444,0.05332335,123.94,123.91,0.0582606]
[1741774673449,8.12352335,123.94,123.91,0.0582606]
[1741774674054,8.12352335,123.94,123.91,8.1296606]
[1741774675451,8.0708,123.93,123.91,0.0582606]
[1741774676655,8.0708,123.93,123.91,8.1298606]
[1741774676854,8.0708,123.93,123.91,0.0582606]
[1741774678150,0.05332335,123.94,123.91,0.0582606]
[1741774678151,8.12352335,123.94,123.91,0.0582606]
[1741774678657,0.05332335,123.94,123.92,8.0708]
[1741774679353,8.12312335,123.94,123.92,8.0708]
[1741774679553,0.05332335,123.94,123.91,0.0582606]
[1741774680654,0.05332335,123.94,123.93,8.0705]
[1741774681459,0.05332335,123.94,123.91,0.0582606]
[1741774683059,8.0711,123.92,123.91,0.0582606]
[1741774683360,0.05332335,123.94,123.91,0.0582606]
[1741774683761,8.12352335,123.94,123.91,8.1296606]
[1741774683955,0.05332335,123.94,123.91,0.0582606]
[1741774684154,0.05332335,123.94,123.92,8.0707]
[1741774684461,0.05332335,123.94,123.91,0.0582606]
[1741774685361,0.05332335,123.94,123.93,8.0705]
[1741774686257,17.08882026,123.99,123.92,38.983]
[1741774686458,17.08882026,123.99,123.92,41.0164]
[1741774686760,17.08882026,123.99,123.93,8.0703]
[1741774686962,17.08882026,123.97,123.92,38.983]
[1741774687159,17.08882026,123.99,123.92,38.983]
[1741774687663,0.0548568,123.97,123.95,8.0685]
[1741774688257,0.0548568,123.97,123.96,8.0685]
[1741774691064,0.0548568,123.97,123.94,0.06006724]
[1741774691464,0.0548568,123.97,123.94,8.12986724]
[1741774691664,0.0548568,123.97,123.94,0.06006724]
[1741774692066,8.0686,123.96,123.94,0.06006724]
[1741774692869,8.1230568,123.97,123.94,8.12956724]
[1741774694067,8.0689,123.96,123.94,0.06006724]
[1741774694669,8.1231568,123.97,123.94,8.12966724]
[1741774696472,8.0686,123.96,123.94,8.12966724]
[1741774696677,17.14367706,123.97,123.94,0.06006724]
[1741774697173,17.08882026,123.95,123.9,8.0721]
[1741774697673,8.0708,123.93,123.9,8.0721]
[1741774697872,17.08882026,123.95,123.9,8.0721]
[1741774698174,8.0721,123.91,123.88,2.0616]
[1741774698472,8.0721,123.91,123.88,10.19677609]
[1741774698662,8.13407256,123.91,123.88,10.19677609]
[1741774699061,0.06197256,123.91,123.88,10.19677609]
[1741774699670,8.13417256,123.91,123.88,10.19677609]
[1741774699867,0.06197256,123.91,123.88,2.12337609]
[1741774702565,58.06002026,123.97,123.88,2.12337609]
[1741774702773,61.99702026,123.97,123.94,8.0694]
[1741774703372,25.15702026,123.97,123.95,8.0691]
[1741774703568,25.15702026,123.97,123.91,36.84]
[1741774703769,8.12383928,123.97,123.95,0.05508181]
[1741774704073,8.0685,123.96,123.95,0.05508181]
[1741774704367,0.05563928,123.97,123.95,0.05508181]
[1741774704964,0.05563928,123.97,123.96,8.0685]
[1741774706063,19.28882026,124.03,123.96,36.84]
[1741774707374,8.0664,124.0,123.98,0.05738887]
[1741774707771,17.14526573,124.01,123.98,0.05738887]
[1741774708872,25.21086573,124.01,123.98,8.12428887]
[1741774709573,0.05644547,124.01,123.98,0.05738887]
[1741774710281,0.05644547,124.01,123.99,8.0663]
[1741774710680,0.05644547,124.01,123.98,0.05738887]
[1741774710981,8.066,124.0,123.98,0.05738887]
[1741774711182,17.14526573,124.01,123.98,0.05738887]
[1741774711578,8.12204547,124.01,123.98,8.12428887]
[1741774711783,8.12204547,124.01,123.98,0.05738887]
[1741774712485,8.12204547,124.01,123.99,8.0663]
[1741774712785,0.05644547,124.01,123.99,8.0663]
[1741774713388,8.12174547,124.01,123.99,8.0663]
[1741774713886,0.05644547,124.01,123.98,0.05738887]
[1741774714090,0.05644547,124.01,124.0,8.0659]
[1741774715683,242.12,124.07,124.0,36.8]
[1741774715884,250.1817,124.07,124.0,36.8]
[1741774716085,13.36548933,124.09,124.01,17.08882026]
[1741774716291,11.16638933,124.09,124.05,17.08882026]
[1741774716589,11.16638933,124.09,124.08,8.0607]
[1741774716793,123.1735367,124.1,124.07,17.08882026]
[1741774717089,18.97093604,124.1,124.09,25.14892026]
[1741774717293,18.97093604,124.1,124.09,61.94892026]
[1741774717492,0.04773658,124.1,124.09,53.88882026]
[1741774718093,0.04773658,124.1,124.09,61.94892026]
[1741774718595,0.04773658,124.1,124.09,53.88882026]
[1741774718994,0.04773658,124.1,124.07,17.08882026]
[1741774719294,0.04773658,124.1,124.06,2.20646052]
[1741774720593,8.10723658,124.1,124.06,2.20646052]
[1741774721790,8.0601,124.09,124.06,2.20646052]
[1741774721992,8.0601,124.09,124.06,0.06126052]
[1741774722792,0.04773658,124.1,124.06,0.06126052]
[1741774723295,8.0601,124.09,124.06,0.06126052]
[1741774724793,8.0608,124.08,124.06,0.06126052]
[1741774725697,0.04773658,124.1,124.06,0.06126052]
[1741774726001,8.0614,124.07,124.06,0.06126052]
[1741774726695,8.0605,124.09,124.06,0.06126052]
[1741774727196,0.04773658,124.1,124.06,0.06126052]
[1741774727396,8.10733658,124.1,124.06,0.06126052]
[1741774727598,0.04773658,124.1,124.06,0.06126052]
[1741774728002,8.0614,124.07,124.06,0.06126052]
[1741774733997,53.85655684,124.1,124.06,0.06126052]
[1741774737107,17.08882026,124.08,124.0,2.1536]
[1741774737304,2.073,124.07,123.99,295.82882026]
[1741774738097,8.063,124.05,123.99,295.82882026]
[1741774738302,0.06048753,124.04,124.02,0.05494322]
[1741774740212,0.06048753,124.04,124.03,8.064]
[1741774742805,8.753e-05,124.04,124.03,61.85282026]
[1741774743311,8.753e-05,124.04,124.03,63.95122026]
[1741774752218,8.753e-05,124.04,124.03,57.77417561]
[1741774752719,18.97017561,124.12,124.03,52.13017561]
[1741774752912,10.91177561,124.14,124.1,10.91177561]
[1741774753112,10.91177561,124.14,124.12,8.0576]
[1741774753312,4.2322,124.15,124.1,10.91177561]
[1741774753919,0.04850957,124.14,124.11,0.05831502]
[1741774754419,0.04850957,124.14,124.13,8.0575]
[1741774755421,0.04850957,124.14,124.12,8.0578]
[1741774755713,0.04850957,124.14,124.11,10.97009063]
[1741774756414,0.04850957,124.14,124.11,0.05831502]
[1741774757620,0.04850957,124.14,124.13,8.0575]
[1741774758754,0.04850957,124.14,124.12,8.058]
[1741774758920,8.10540957,124.14,124.12,8.058]
[1741774759423,0.04850957,124.14,124.11,0.05831502]
[1741774759616,17.08113113,124.14,124.11,0.05831502]
[1741774759813,19.19903113,124.14,124.11,0.05831502]
[1741774760016,17.03262156,124.12,124.06,33.51710644]
[1741774760217,8.0602,124.09,124.06,33.51710644]
[1741774760723,17.03262156,124.12,124.06,41.57880644]
[1741774761118,0.06153276,124.1,124.08,0.05501398]
[1741774761324,8.0604,124.09,124.08,0.05501398]
[1741774762620,0.06153276,124.1,124.08,0.05501398]
[1741774762822,8.12133276,124.1,124.08,0.05501398]
[1741774763424,0.06153276,124.1,124.09,8.0601]
[1741774766022,3.276e-05,124.1,124.09,25.09272156]
[1741774766225,258.87262156,124.18,124.09,4.4934]
[1741774766226,241.84,124.18,124.09,4.4934]
[1741774766425,53.65262156,124.2,124.12,17.03262156]
[1741774766625,53.65262156,124.2,124.1,17.03262156]
[1741774766830,17.03262156,124.18,124.08,53.65262156]
[1741774767324,0.04529183,124.14,124.12,0.0542578]
[1741774768023,0.04529183,124.14,124.13,8.0575]
[1741774769825,0.04529183,124.14,124.12,8.1121578]
[1741774770027,0.04529183,124.14,124.12,0.0542578]
[1741774770228,8.10259183,124.14,124.12,0.0542578]
[1741774770625,0.04529183,124.14,124.12,0.0542578]
[1741774771428,8.0575,124.13,124.12,0.0542578]
[1741774771625,0.04529183,124.14,124.12,0.0542578]
[1741774772535,0.04529183,124.14,124.13,8.0575]
[1741774778237,0.04529183,124.14,124.12,8.1120578]
[1741774778628,8.10269183,124.14,124.12,0.0542578]
[1741774779435,0.04529183,124.14,124.12,0.0542578]
[1741774779631,8.0575,124.13,124.12,0.0542578]
[1741774779836,2.0893,124.13,124.07,8.0611]
[1741774780057,8.0614,124.07,124.04,145.57955755]
[1741774780332,17.03262156,124.08,124.04,145.57955755]
[1741774780539,2.0893,124.07,124.04,145.57955755]
[1741774780840,2.14162758,124.07,124.05,33.5722586]
[1741774781132,25.09462156,124.06,124.05,0.05515216]
[1741774781437,17.03262156,124.06,124.04,76.30571615]
[1741774781831,8.0634,124.04,124.0,30.54574281]
[1741774782436,8.12567139,124.03,124.01,0.05796351]
[1741774782744,0.06117139,124.03,124.01,0.05796351]
[1741774784028,0.06117139,124.03,124.01,8.12286351]
[1741774785238,0.06117139,124.03,124.01,0.05796351]
[1741774786341,0.06117139,124.03,124.01,8.12286351]
[1741774787542,0.06117139,124.03,124.02,8.0646]
[1741774788342,0.06117139,124.03,124.01,0.05796351]
[1741774789137,0.06117139,124.03,124.02,8.0646]
[1741774789334,0.06117139,124.03,124.01,0.05796351]
[1741774789742,0.06117139,124.03,124.02,8.0646]
[1741774802363,0.06117139,124.03,124.01,0.05796351]
[1741774802562,8.12527139,124.03,124.01,8.12296351]
[1741774802761,0.06117139,124.03,124.01,0.05796351]
[1741774802963,0.06117139,124.03,124.02,8.0646]
[1741774805869,0.06117139,124.03,124.01,0.05796351]
[1741774806165,8.12517139,124.03,124.01,8.12296351]
[1741774807874,25.09722156,124.02,124.01,0.05796351]
[1741774808059,36.48524312,124.02,123.91,4.1523]
[1741774808264,8.0686,123.96,123.93,8.0701]
[1741774808466,17.03262156,123.99,123.91,42.8856]
[1741774808666,17.03262156,123.97,123.89,363.31064418]
[1741774808964,17.03262156,123.95,123.88,127.56261556]
[1741774809168,0.05758469,123.94,123.92,0.06123572]
[1741774809364,8.0708,123.93,123.92,0.06123572]
[1741774809569,0.05758469,123.94,123.92,0.06123572]
[1741774810874,0.05758469,123.94,123.93,8.0705]
[1741774811571,53.53262156,123.99,123.92,36.56123572]
[1741774811775,53.53262156,123.99,123.96,8.068]
[1741774812074,17.03262156,124.01,123.93,2.0262]
[1741774812373,36.52,124.02,123.94,19.13792156]
[1741774812872,36.52,124.02,123.99,8.0666]
[1741774813262,0.05977929,124.02,123.97,0.05225756]
[1741774813471,0.05977929,124.02,124.01,8.0653]
[1741774814271,0.05977929,124.02,124.0,0.0555866]
[1741774814868,0.05977929,124.02,124.01,8.0653]
[1741774816165,7.929e-05,124.02,124.01,8.0653]
[1741774816467,12.9929,124.11,124.0,53.58820816]
[1741774816666,2.1779,124.11,124.04,17.03262156]
[1741774816871,2.1779,124.11,124.04,53.53262156]
[1741774817068,44.65079465,124.12,124.04,53.53262156]
[1741774817275,303.66341621,124.13,124.04,53.53262156]
[1741774817471,303.66341621,124.13,124.09,8.0596]
[1741774817667,0.05686553,124.1,124.09,8.0596]
[1741774819174,0.05686553,124.1,124.08,0.05321913]
[1741774819871,27.27106636,124.09,124.01,38.6771]
[1741774820076,27.27106636,124.09,124.01,40.6906]
[1741774820978,0.05406339,124.06,124.04,0.05264947]
[1741774824874,8.11626339,124.06,124.04,0.05264947]
[1741774825072,0.05406339,124.06,124.04,0.05264947]
[1741774825279,27.27106636,124.05,123.97,36.46]
[1741774825473,8.0651,124.02,123.97,36.46]
[1741774825968,8.0643,124.03,123.97,36.46]
[1741774826168,36.46,124.06,123.97,36.46]
[1741774826380,0.05179035,124.02,124.0,0.05255999]
[1741774827179,8.0653,124.01,124.0,0.05255999]
[1741774827566,0.05179035,124.02,124.0,0.05255999]
[1741774828379,8.11669035,124.02,124.0,0.05255999]
[1741774829079,8.0653,124.01,124.0,0.05255999]
[1741774832777,36.49179035,124.02,124.0,0.05255999]
[1741774833380,8.0653,124.01,124.0,0.05255999]
[1741774834079,35.33636636,124.01,124.0,0.05255999]
[1741774834878,29.69106636,124.01,123.9,6.4513]
[1741774835182,27.27106636,123.99,123.94,8.0695]
[1741774835380,63.71106636,123.99,123.9,6.4513]
[1741774835580,63.71106636,123.99,123.92,8.0708]
[1741774835985,0.05109292,123.97,123.94,0.05179597]
[1741774836384,8.0691,123.96,123.94,0.05179597]
[1741774836583,0.05109292,123.97,123.94,0.05179597]
[1741774836784,0.05109292,123.97,123.94,8.12139597]
[1741774836980,0.05109292,123.97,123.94,0.05179597]
[1741774837184,27.32215928,123.97,123.94,0.05179597]
[1741774837382,27.32215928,123.97,123.9,6.4513]
[1741774837383,27.32215928,123.97,123.9,8.0722]
[1741774837886,8.0708,123.93,123.9,8.0722]
[1741774838087,63.71106636,123.95,123.89,8.0729]
[1741774838284,27.27106636,123.93,123.87,2.0877]
[1741774838484,8.0723,123.91,123.86,4.133]
[1741774838684,8.0723,123.91,123.88,0.05821643]
[1741774838888,0.06199095,123.9,123.88,0.05821643]
[1741774842282,0.06199095,123.9,123.89,8.0731]
[1741774842684,278.42,123.97,123.89,4.4247]
[1741774842889,286.4882,123.97,123.89,4.4247]
[1741774843286,286.4882,123.97,123.93,8.0701]
[1741774843792,0.06200584,123.96,123.94,0.05805037]
[1741774844189,8.0692,123.95,123.94,0.05805037]
[1741774845287,8.0713,123.92,123.88,8.0734]
[1741774845494,8.0713,123.92,123.86,2.1237]
[1741774845886,36.42,123.93,123.87,8.074]
[1741774846092,8.0719,123.91,123.87,8.074]
[1741774846593,0.05260117,123.9,123.88,0.05127031]
[1741774846786,0.05260117,123.9,123.88,8.12497031]
[1741774847188,0.05260117,123.9,123.88,0.05127031]
[1741774848294,0.05260117,123.9,123.88,8.12497031]
[1741774849590,0.05260117,123.9,123.88,0.05127031]
[1741774849794,8.12510117,123.9,123.88,0.05127031]
[1741774850493,8.0731,123.89,123.88,0.05127031]
[1741774850686,44.4931,123.89,123.88,0.05127031]
[1741774859909,36.42,123.89,123.88,0.05127031]
[1741774860712,44.4931,123.89,123.88,0.05127031]
[1741774860909,0.05260117,123.9,123.88,0.05127031]
[1741774861116,0.05260117,123.9,123.89,8.0731]
[1741774861314,0.05260117,123.9,123.88,0.05127031]
[1741774862211,8.12530117,123.9,123.88,0.05127031]
[1741774862412,0.05260117,123.9,123.88,0.05127031]
[1741774862612,0.05260117,123.9,123.88,8.12477031]
[1741774863012,0.05260117,123.9,123.88,0.05127031]
[1741774863312,0.05260117,123.9,123.89,8.0731]
[1741774863707,17.10257235,123.97,123.91,8.0715]
[1741774863911,36.38,123.96,123.88,17.10257235]
[1741774864104,17.10257235,123.95,123.86,23.46317235]
[1741774864302,8.0714,123.92,123.89,8.0728]
[1741774864515,17.10257235,123.93,123.86,6.3606]
[1741774864915,0.05365696,123.91,123.88,0.06092905]
[1741774865318,8.0702,123.94,123.91,8.0714]
[1741774865920,8.0702,123.94,123.91,8.0712]
[1741774866518,71.8499432,124.03,123.92,17.10257235]
[1741774866818,53.48257235,124.03,123.95,17.10257235]
[1741774867114,17.10257235,124.01,123.93,17.10257235]
[1741774867418,17.10257235,123.99,123.92,2.0332]
[1741774867615,0.05150891,123.98,123.96,8.12930939]
[1741774867919,0.05150891,123.98,123.96,0.06120939]
[1741774868512,0.05150891,123.98,123.96,8.12920939]
[1741774868712,0.05150891,123.98,123.96,0.06120939]
[1741774869311,0.05150891,123.98,123.97,8.0679]
[1741774869518,17.10257235,124.03,123.96,0.06120939]
[1741774869915,17.10257235,124.03,123.99,8.0661]
[1741774870324,8.065,124.02,123.99,8.0661]
[1741774870523,36.36,124.04,123.99,8.0661]
[1741774870718,0.05698294,124.02,123.99,8.1183043]
[1741774871819,0.05698294,124.02,123.99,0.0522043]
[1741774872523,8.12208294,124.02,123.99,0.0522043]
[1741774872725,0.05698294,124.02,123.99,0.0522043]
[1741774872928,27.31529725,124.01,123.99,0.0522043]
[1741774873124,44.4059,124.0,123.99,0.0522043]
[1741774873826,44.4059,124.0,123.99,4.3e-06]
[1741774876124,8.12208294,124.02,123.99,4.3e-06]
[1741774876328,0.05698294,124.02,123.99,4.3e-06]
[1741774876825,0.05698294,124.02,123.99,8.0663043]
[1741774877323,0.05698294,124.02,124.0,8.0656]
[1741774877528,0.05698294,124.02,123.99,4.3e-06]
[1741774878119,8.0653,124.01,123.99,4.3e-06]
[1741774878429,0.05698294,124.02,123.99,4.3e-06]
[1741774878631,8.12218294,124.02,123.99,8.0661043]
[1741774881534,0.05698294,124.02,123.99,4.3e-06]
[1741774882029,8.0654,124.01,123.99,4.3e-06]
[1741774882231,0.05698294,124.02,123.99,4.3e-06]
[1741774882531,8.0659,124.0,123.99,4.3e-06]
[1741774887239,8.0655,124.01,123.99,4.3e-06]
[1741774888144,0.05698294,124.02,123.99,4.3e-06]
[1741774889340,8.0659,124.0,123.99,4.3e-06]
[1741774892845,0.05698294,124.02,123.99,4.3e-06]
[1741774893545,8.0653,124.01,123.99,8.0663043]
[1741774893746,0.05698294,124.02,123.99,4.3e-06]
[1741774894050,8.12208294,124.02,124.0,8.0659]
[1741774894248,0.05698294,124.02,123.99,4.3e-06]
[1741774895240,8.12208294,124.02,123.99,8.0662043]
[1741774896141,8.0653,124.01,123.99,8.0662043]
[1741774898545,8.12188294,124.02,123.99,4.3e-06]
[1741774898749,8.12188294,124.02,124.0,8.0656]
[1741774899551,0.05698294,124.02,124.0,8.0656]
[1741774900852,0.05698294,124.02,123.99,4.3e-06]
[1741774901048,8.12208294,124.02,123.99,8.0662043]
[1741774901258,8.12208294,124.02,123.99,4.3e-06]
[1741774901747,8.12208294,124.02,123.99,8.0662043]
[1741774902453,8.12208294,124.02,123.99,4.3e-06]
[1741774902652,8.12208294,124.02,124.0,8.0658]
[1741774903352,0.05698294,124.02,124.01,8.0653]
[1741774905059,17.07648962,124.07,124.0,17.07648962]
[1741774905258,8.0623,124.06,124.03,8.0635]
[1741774905855,8.0623,124.06,124.04,8.063]
[1741774906059,8.0617,124.07,124.04,8.063]
[1741774906268,0.05168754,124.06,124.04,8.11542836]
[1741774907266,8.0627,124.05,124.04,0.05242836]
[1741774907565,0.05168754,124.06,124.04,0.05242836]
[1741774909764,8.0627,124.05,124.04,0.05242836]
[1741774911863,0.05168754,124.06,124.04,0.05242836]
[1741774912168,8.11398754,124.06,124.04,8.11572836]
[1741774914872,0.05168754,124.06,124.04,0.05242836]
[1741774915072,8.0627,124.05,124.04,0.05242836]
[1741774916371,8.11398754,124.06,124.04,0.05242836]
[1741774917874,8.11398754,124.06,124.04,8.11542836]
[1741774918976,8.0627,124.05,124.04,0.05242836]
[1741774920677,8.11398754,124.06,124.04,8.11552836]
[1741774920876,0.05168754,124.06,124.04,0.05242836]
[1741774921372,0.05168754,124.06,124.0,8.0655]
[1741774921973,0.05168754,124.06,123.99,50.4079]
[1741774922476,17.07648962,124.05,124.01,0.05613908]
[1741774922668,17.07648962,124.03,124.01,3.908e-05]
[1741774922874,17.07648962,124.03,123.93,42.4762]
[1741774923079,17.07648962,124.0,123.93,14.3864]
[1741774923372,53.23648962,124.0,123.93,6.3162]
[1741774923579,36.16,124.0,123.94,36.16]
[1741774923777,17.07648962,124.02,123.96,8.0681]
[1741774924076,0.06162208,123.98,123.96,8.12779701]
[1741774924579,0.06162208,123.98,123.96,0.05969701]
[1741774924779,0.06162208,123.98,123.96,8.12809701]
[1741774925379,36.16,124.03,123.96,0.05969701]
[1741774925879,36.16,124.03,123.97,8.0676]
[1741774926278,8.0663,124.0,123.94,53.23648962]
[1741774926478,17.07648962,124.02,123.97,8.0677]
[1741774926880,0.0601915,124.01,123.96,0.05116595]
[1741774927782,17.07648962,124.0,123.96,0.05116595]
[1741774928173,17.07648962,123.98,123.96,0.05116595]
[1741774928577,17.13318968,123.98,123.96,0.05116595]
[1741774929183,8.0679,123.97,123.96,0.05116595]
[1741774929383,17.13318968,123.98,123.96,0.05116595]
[1741774929583,25.20078968,123.98,123.96,0.05116595]
[1741774930787,0.05670006,123.98,123.96,0.05116595]
[1741774931483,0.05670006,123.98,123.96,8.11966595]
[1741774931687,0.05670006,123.98,123.96,0.05116595]
[1741774932077,0.05670006,123.98,123.96,8.11936595]